[Event "Early-Titled-Tuesday-Blitz-June-18-2024"]
[Site "Chess.com"]
[Date "2024.06.18"]
[Round "11"]
[White "Puzzlebot_1294"]
[Black "rookpower2004"]
[Result "1-0"]
[WhiteElo "2684"]
[BlackElo "2498"]
[TimeControl "180+1"]
[EndTime "10:08:51 PDT"]
[Termination "Puzzlebot_1294 won on time"]

1. d4 {[%clk 0:02:52.2]} 1... d5 {[%clk 0:02:59.3]} 2. Bf4 {[%clk 0:02:52.5]}
2... e6 {[%clk 0:02:57]} 3. e3 {[%clk 0:02:51.9]} 3... c5 {[%clk 0:02:56.2]} 4.
Nf3 {[%clk 0:02:50.6]} 4... Nf6 {[%clk 0:02:53.9]} 5. c3 {[%clk 0:02:49.3]} 5...
Nc6 {[%clk 0:02:51.3]} 6. Nbd2 {[%clk 0:02:48.8]} 6... Bd6 {[%clk 0:02:48.1]} 7.
Bg3 {[%clk 0:02:48.2]} 7... O-O {[%clk 0:02:46.8]} 8. Bd3 {[%clk 0:02:47.6]}
8... Qe7 {[%clk 0:02:40.3]} 9. Ne5 {[%clk 0:02:46.3]} 9... Nd7 {[%clk
0:02:39.5]} 10. f4 {[%clk 0:02:43.8]} 10... f6 {[%clk 0:02:37.2]} 11. Nxc6
{[%clk 0:02:38.7]} 11... bxc6 {[%clk 0:02:38.1]} 12. O-O {[%clk 0:02:36.5]}
12... f5 {[%clk 0:02:34.3]} 13. Nf3 {[%clk 0:02:26.6]} 13... Nf6 {[%clk
0:02:31.4]} 14. Bh4 {[%clk 0:02:25.6]} 14... cxd4 {[%clk 0:02:27.5]} 15. cxd4
{[%clk 0:02:24.4]} 15... c5 {[%clk 0:02:27.5]} 16. Ne5 {[%clk 0:02:09.3]} 16...
Bb7 {[%clk 0:02:17.3]} 17. Rc1 {[%clk 0:01:57.8]} 17... c4 {[%clk 0:02:13.6]}
18. Bb1 {[%clk 0:01:56.3]} 18... Qe8 {[%clk 0:02:12.5]} 19. Bxf6 {[%clk
0:01:55.2]} 19... gxf6 {[%clk 0:02:09.4]} 20. Nf3 {[%clk 0:01:55.2]} 20... Kh8
{[%clk 0:02:06.6]} 21. Kh1 {[%clk 0:01:54.5]} 21... Rg8 {[%clk 0:02:04.6]} 22.
Nh4 {[%clk 0:01:53.8]} 22... Rc8 {[%clk 0:01:49.1]} 23. Qf3 {[%clk 0:01:47.6]}
23... Qf8 {[%clk 0:01:44.9]} 24. g3 {[%clk 0:01:42.6]} 24... Bc6 {[%clk
0:01:42.1]} 25. Rg1 {[%clk 0:01:35.8]} 25... Rb8 {[%clk 0:01:41.5]} 26. Rc2
{[%clk 0:01:32.5]} 26... Ba4 {[%clk 0:01:38.8]} 27. Rf2 {[%clk 0:01:29]} 27...
Qh6 {[%clk 0:01:36.7]} 28. Bxf5 {[%clk 0:01:20.8]} 28... exf5 {[%clk 0:01:30.8]}
29. Nxf5 {[%clk 0:01:21.7]} 29... Qf8 {[%clk 0:01:31.2]} 30. Qxd5 {[%clk
0:01:22.2]} 30... Rb6 {[%clk 0:01:13.9]} 31. Qxc4 {[%clk 0:01:19.2]} 31... Bb5
{[%clk 0:01:08.5]} 32. Qc2 {[%clk 0:01:15.3]} 32... Qa8+ {[%clk 0:01:07.8]} 33.
e4 {[%clk 0:01:11.4]} 33... Rc8 {[%clk 0:01:01]} 34. Qb1 {[%clk 0:01:11.2]}
34... Re8 {[%clk 0:00:50.4]} 35. Nxd6 {[%clk 0:00:57.4]} 35... Rxd6 {[%clk
0:00:49.4]} 36. d5 {[%clk 0:00:58.3]} 36... f5 {[%clk 0:00:35.6]} 37. e5 {[%clk
0:00:46.8]} 37... Qxd5+ {[%clk 0:00:34.1]} 38. Rfg2 {[%clk 0:00:47.2]} 38... Rg6
{[%clk 0:00:24.1]} 39. Qxf5 {[%clk 0:00:21.7]} 39... Bc6 {[%clk 0:00:17]} 40.
Qc2 {[%clk 0:00:15]} 40... Rd8 {[%clk 0:00:15.3]} 41. Rc1 {[%clk 0:00:09.9]}
41... Qxg2+ {[%clk 0:00:10.1]} 42. Qxg2 {[%clk 0:00:08.5]} 42... Bxg2+ {[%clk
0:00:10.7]} 43. Kxg2 {[%clk 0:00:09.4]} 43... Rd2+ {[%clk 0:00:10.5]} 44. Kf3
{[%clk 0:00:09.6]} 44... Rxb2 {[%clk 0:00:10.5]} 45. f5 {[%clk 0:00:09.3]} 45...
Rg8 {[%clk 0:00:08.8]} 46. e6 {[%clk 0:00:06.6]} 46... Rf8 {[%clk 0:00:06]} 47.
g4 {[%clk 0:00:06.3]} 47... Rb7 {[%clk 0:00:03]} 48. Kf4 {[%clk 0:00:05.4]}
48... Kg7 {[%clk 0:00:01.4]} 49. Rc4 {[%clk 0:00:03.7]} 1-0

[Event "Early-Titled-Tuesday-Blitz-June-18-2024"]
[Site "Chess.com"]
[Date "2024.06.18"]
[Round "11"]
[White "SujanaLohani"]
[Black "chess_peak"]
[Result "0-1"]
[WhiteElo "2290"]
[BlackElo "2535"]
[TimeControl "180+1"]
[EndTime "10:08:53 PDT"]
[Termination "chess_peak won by resignation"]

1. e4 {[%clk 0:03:00.9]} 1... c5 {[%clk 0:02:59.9]} 2. Nf3 {[%clk 0:02:59.8]}
2... Nc6 {[%clk 0:03:00.2]} 3. Bb5 {[%clk 0:02:58.3]} 3... e6 {[%clk 0:03:00.3]}
4. O-O {[%clk 0:02:56.2]} 4... Nge7 {[%clk 0:03:00.5]} 5. d4 {[%clk 0:02:55.7]}
5... cxd4 {[%clk 0:02:59.8]} 6. Nxd4 {[%clk 0:02:56.6]} 6... Qb6 {[%clk
0:02:59.6]} 7. Nxc6 {[%clk 0:02:25]} 7... bxc6 {[%clk 0:02:59.4]} 8. Bd3 {[%clk
0:02:23.1]} 8... Ng6 {[%clk 0:02:59.3]} 9. Nc3 {[%clk 0:02:22.8]} 9... Be7
{[%clk 0:02:57.3]} 10. Kh1 {[%clk 0:02:19.8]} 10... e5 {[%clk 0:02:37.1]} 11.
Rb1 {[%clk 0:02:12.4]} 11... O-O {[%clk 0:02:32.8]} 12. Be3 {[%clk 0:02:12.9]}
12... Qc7 {[%clk 0:02:33]} 13. g3 {[%clk 0:02:11.1]} 13... d6 {[%clk 0:02:26.4]}
14. f4 {[%clk 0:02:10]} 14... exf4 {[%clk 0:02:19.2]} 15. gxf4 {[%clk
0:02:09.9]} 15... f5 {[%clk 0:02:16.6]} 16. Qh5 {[%clk 0:02:04]} 16... Nh4
{[%clk 0:01:47.9]} 17. Rg1 {[%clk 0:01:51.5]} 17... fxe4 {[%clk 0:01:29.7]} 18.
Nxe4 {[%clk 0:01:37.4]} 18... Bf5 {[%clk 0:01:11]} 19. Rxg7+ {[%clk 0:01:10.4]}
19... Kxg7 {[%clk 0:01:10.3]} 20. Bd4+ {[%clk 0:01:09.7]} 20... Kg8 {[%clk
0:00:50]} 21. Rg1+ {[%clk 0:01:08.6]} 21... Ng6 {[%clk 0:00:45.6]} 22. Ng5
{[%clk 0:01:03.2]} 22... Bxg5 {[%clk 0:00:42.3]} 23. Rxg5 {[%clk 0:00:58.2]}
23... Bxd3 {[%clk 0:00:41.8]} 24. cxd3 {[%clk 0:00:59]} 24... Qf7 {[%clk
0:00:35]} 25. f5 {[%clk 0:00:57.4]} 25... Qd5+ {[%clk 0:00:33.9]} 26. Kg1 {[%clk
0:00:47.9]} 26... Qxd4+ {[%clk 0:00:33.1]} 27. Kh1 {[%clk 0:00:47.8]} 27... Rxf5
{[%clk 0:00:25.1]} 28. Rxf5 {[%clk 0:00:41.9]} 28... Rf8 {[%clk 0:00:24]} 29.
Rxf8+ {[%clk 0:00:41.4]} 29... Nxf8 {[%clk 0:00:24.3]} 30. Qg5+ {[%clk
0:00:40.7]} 30... Ng6 {[%clk 0:00:18.7]} 31. Qd8+ {[%clk 0:00:40.8]} 31... Kg7
{[%clk 0:00:19.2]} 32. Qd7+ {[%clk 0:00:40.4]} 32... Kh6 {[%clk 0:00:19.7]} 33.
Qh3+ {[%clk 0:00:39.5]} 33... Qh4 {[%clk 0:00:19.1]} 34. Qe3+ {[%clk 0:00:36.3]}
34... Qg5 {[%clk 0:00:19.5]} 35. Qh3+ {[%clk 0:00:35.5]} 35... Kg7 {[%clk
0:00:19.6]} 36. Qd7+ {[%clk 0:00:35]} 36... Kh6 {[%clk 0:00:14.5]} 37. Qh3+
{[%clk 0:00:30.7]} 37... Nh4 {[%clk 0:00:13.2]} 38. Qe6+ {[%clk 0:00:29.6]}
38... Qg6 {[%clk 0:00:10.4]} 39. Qe3+ {[%clk 0:00:29.5]} 39... Kh5 {[%clk
0:00:10.9]} 40. Qe2+ {[%clk 0:00:28.2]} 40... Kg5 {[%clk 0:00:10.4]} 41. Qe3+
{[%clk 0:00:27.7]} 41... Kg4 {[%clk 0:00:05.2]} 42. Qg3+ {[%clk 0:00:21.8]}
42... Kh5 {[%clk 0:00:05.1]} 43. Qf2 {[%clk 0:00:19.2]} 43... Qf5 {[%clk
0:00:03.8]} 44. Kg1 {[%clk 0:00:07.9]} 44... Qxf2+ {[%clk 0:00:03.4]} 45. Kxf2
{[%clk 0:00:08.8]} 45... Kg4 {[%clk 0:00:04.3]} 46. a4 {[%clk 0:00:09.4]} 46...
Nf5 {[%clk 0:00:04.8]} 47. b4 {[%clk 0:00:10.1]} 47... Kf4 {[%clk 0:00:04.5]}
48. a5 {[%clk 0:00:10.4]} 48... Ke5 {[%clk 0:00:04.8]} 49. a6 {[%clk 0:00:08.1]}
49... Kd4 {[%clk 0:00:04.9]} 50. Kf3 {[%clk 0:00:08]} 50... Ne7 {[%clk
0:00:05.1]} 51. Kf4 {[%clk 0:00:08.9]} 51... Nd5+ {[%clk 0:00:04.9]} 52. Kg5
{[%clk 0:00:08.9]} 52... Nxb4 {[%clk 0:00:05.8]} 53. Kh6 {[%clk 0:00:09.8]}
53... Nxd3 {[%clk 0:00:06.5]} 54. Kxh7 {[%clk 0:00:10.7]} 54... c5 {[%clk
0:00:07.2]} 55. Kg6 {[%clk 0:00:11.1]} 55... c4 {[%clk 0:00:06.4]} 56. h4 {[%clk
0:00:12]} 56... c3 {[%clk 0:00:06.8]} 57. Kf5 {[%clk 0:00:12.9]} 57... c2 {[%clk
0:00:06.9]} 58. h5 {[%clk 0:00:13.8]} 58... c1=Q {[%clk 0:00:07.5]} 59. h6
{[%clk 0:00:14.7]} 59... Qxh6 {[%clk 0:00:07.8]} 0-1

[Event "Early-Titled-Tuesday-Blitz-June-18-2024"]
[Site "Chess.com"]
[Date "2024.06.18"]
[Round "11"]
[White "suyu28"]
[Black "averageFM"]
[Result "1-0"]
[WhiteElo "2764"]
[BlackElo "2579"]
[TimeControl "180+1"]
[EndTime "10:09:03 PDT"]
[Termination "suyu28 won by resignation"]

1. e4 {[%clk 0:02:46.2]} 1... e5 {[%clk 0:02:59.5]} 2. Nf3 {[%clk 0:02:45.9]}
2... Nc6 {[%clk 0:02:59.3]} 3. Bb5 {[%clk 0:02:44.7]} 3... a6 {[%clk 0:02:59]}
4. Ba4 {[%clk 0:02:44.2]} 4... Nf6 {[%clk 0:02:59.1]} 5. O-O {[%clk 0:02:43.7]}
5... Bc5 {[%clk 0:02:57.3]} 6. Bxc6 {[%clk 0:02:41.8]} 6... dxc6 {[%clk
0:02:55.2]} 7. d3 {[%clk 0:02:42.4]} 7... Qe7 {[%clk 0:02:46.3]} 8. Nbd2 {[%clk
0:02:39]} 8... O-O {[%clk 0:02:43.1]} 9. Nc4 {[%clk 0:02:39.1]} 9... Nd7 {[%clk
0:02:37.4]} 10. Be3 {[%clk 0:02:39]} 10... Bd6 {[%clk 0:02:29.9]} 11. a4 {[%clk
0:02:30]} 11... Rd8 {[%clk 0:02:21]} 12. a5 {[%clk 0:02:28.9]} 12... Nf8 {[%clk
0:02:20.4]} 13. Re1 {[%clk 0:02:25.3]} 13... Ng6 {[%clk 0:02:11.8]} 14. c3
{[%clk 0:02:16.6]} 14... Bg4 {[%clk 0:02:08.4]} 15. h3 {[%clk 0:02:15.5]} 15...
Be6 {[%clk 0:02:08.3]} 16. Qc2 {[%clk 0:02:03.1]} 16... Rf8 {[%clk 0:02:04.7]}
17. b4 {[%clk 0:01:48.1]} 17... h6 {[%clk 0:02:03.6]} 18. Rad1 {[%clk
0:01:42.7]} 18... Rad8 {[%clk 0:02:02.4]} 19. Ncd2 {[%clk 0:01:37.8]} 19... Kh7
{[%clk 0:01:58]} 20. d4 {[%clk 0:01:34.5]} 20... exd4 {[%clk 0:01:53.4]} 21.
Bxd4 {[%clk 0:01:31.6]} 21... c5 {[%clk 0:01:42.1]} 22. e5 {[%clk 0:01:26]}
22... cxd4 {[%clk 0:01:38.5]} 23. exd6 {[%clk 0:01:25.9]} 23... Qxd6 {[%clk
0:01:34.6]} 24. Nxd4 {[%clk 0:01:25.6]} 24... Bd5 {[%clk 0:01:24.7]} 25. Ne4
{[%clk 0:01:23.8]} 25... Bxe4 {[%clk 0:01:14.8]} 26. Qxe4 {[%clk 0:01:16.2]}
26... c6 {[%clk 0:01:12.3]} 27. g3 {[%clk 0:01:00.5]} 27... Qf6 {[%clk
0:01:10.9]} 28. h4 {[%clk 0:00:53.3]} 28... Kg8 {[%clk 0:01:10.4]} 29. h5 {[%clk
0:00:52.7]} 29... Nh8 {[%clk 0:01:04.3]} 30. Nf5 {[%clk 0:00:52.9]} 30... g6
{[%clk 0:00:48.1]} 31. hxg6 {[%clk 0:00:46.7]} 31... Nxg6 {[%clk 0:00:45.4]} 32.
Nxh6+ {[%clk 0:00:45.5]} 32... Kh7 {[%clk 0:00:45]} 33. Nf5 {[%clk 0:00:41.6]}
33... Rfe8 {[%clk 0:00:37.9]} 34. Qf3 {[%clk 0:00:33.6]} 34... Qg5 {[%clk
0:00:25]} 35. Kg2 {[%clk 0:00:23.2]} 35... Rxe1 {[%clk 0:00:22]} 36. Rxe1 {[%clk
0:00:22.2]} 36... Rd5 {[%clk 0:00:21.1]} 37. Rh1+ {[%clk 0:00:16.7]} 37... Kg8
{[%clk 0:00:19.8]} 38. Rh5 {[%clk 0:00:14.7]} 38... Nf4+ {[%clk 0:00:10.9]} 39.
Qxf4 {[%clk 0:00:11.2]} 39... Qxh5 {[%clk 0:00:11.1]} 40. Ne7+ {[%clk
0:00:10.2]} 40... Kf8 {[%clk 0:00:11.3]} 41. Nxd5 {[%clk 0:00:10]} 41... Qxd5+
{[%clk 0:00:12.2]} 42. Qf3 {[%clk 0:00:09.8]} 42... Qd2 {[%clk 0:00:12.3]} 43.
Qe3 {[%clk 0:00:09.5]} 43... Qd5+ {[%clk 0:00:11.9]} 44. Kg1 {[%clk 0:00:09.3]}
44... Qd1+ {[%clk 0:00:12]} 45. Kh2 {[%clk 0:00:09.3]} 45... Qh5+ {[%clk
0:00:12.4]} 46. Kg2 {[%clk 0:00:09.5]} 46... Qd5+ {[%clk 0:00:12.7]} 47. Qf3
{[%clk 0:00:10.1]} 47... Qd2 {[%clk 0:00:12.9]} 48. g4 {[%clk 0:00:10.1]} 48...
Qc1 {[%clk 0:00:11.4]} 49. Qe3 {[%clk 0:00:09.8]} 49... Qd1 {[%clk 0:00:10.6]}
50. Qc5+ {[%clk 0:00:10]} 50... Kg8 {[%clk 0:00:10.5]} 51. Qd4 {[%clk 0:00:10]}
51... Qe1 {[%clk 0:00:06.9]} 52. Kg3 {[%clk 0:00:10.2]} 52... Qg1+ {[%clk
0:00:06.5]} 53. Kf4 {[%clk 0:00:10.5]} 53... Qh2+ {[%clk 0:00:06.8]} 54. Kf5
{[%clk 0:00:10.2]} 54... Qh7+ {[%clk 0:00:06.7]} 55. Ke5 {[%clk 0:00:10.3]}
55... Qg7+ {[%clk 0:00:05.6]} 56. Kd6 {[%clk 0:00:10.6]} 56... Qg6+ {[%clk
0:00:05]} 57. Kc7 {[%clk 0:00:10.9]} 57... f5 {[%clk 0:00:02.5]} 58. gxf5 {[%clk
0:00:10.8]} 58... Qf7+ {[%clk 0:00:02.6]} 59. Kb8 {[%clk 0:00:10.8]} 59... Qxf5
{[%clk 0:00:02.8]} 60. Kxb7 {[%clk 0:00:11]} 60... Qf3 {[%clk 0:00:03.3]} 61.
Kxa6 {[%clk 0:00:10.7]} 1-0

[Event "Early-Titled-Tuesday-Blitz-June-18-2024"]
[Site "Chess.com"]
[Date "2024.06.18"]
[Round "11"]
[White "snowlord"]
[Black "Rutricks"]
[Result "0-1"]
[WhiteElo "2944"]
[BlackElo "2783"]
[TimeControl "180+1"]
[EndTime "10:09:07 PDT"]
[Termination "Rutricks won on time"]

1. c4 {[%clk 0:03:00.9]} 1... g6 {[%clk 0:03:00.9]} 2. d4 {[%clk 0:02:58.8]}
2... Bg7 {[%clk 0:03:01.8]} 3. Nf3 {[%clk 0:02:57.1]} 3... d6 {[%clk 0:03:02.5]}
4. Nc3 {[%clk 0:02:56.5]} 4... Nd7 {[%clk 0:03:03.3]} 5. Bg5 {[%clk 0:02:54.9]}
5... h6 {[%clk 0:03:03.4]} 6. Bh4 {[%clk 0:02:54.9]} 6... Ngf6 {[%clk
0:03:02.8]} 7. e3 {[%clk 0:02:55.3]} 7... g5 {[%clk 0:03:02.9]} 8. Bg3 {[%clk
0:02:55.3]} 8... Nh5 {[%clk 0:03:03.7]} 9. Qc2 {[%clk 0:02:54.3]} 9... b6 {[%clk
0:03:03.6]} 10. Bd3 {[%clk 0:02:47]} 10... e6 {[%clk 0:03:02.6]} 11. Be4 {[%clk
0:02:41.8]} 11... Rb8 {[%clk 0:03:02.4]} 12. Nb5 {[%clk 0:02:42.4]} 12... f5
{[%clk 0:02:58.6]} 13. Bc6 {[%clk 0:02:29.6]} 13... a6 {[%clk 0:02:49.8]} 14.
Na7 {[%clk 0:02:23.5]} 14... O-O {[%clk 0:02:40.2]} 15. Nxc8 {[%clk 0:02:23.2]}
15... Rxc8 {[%clk 0:02:36.5]} 16. O-O {[%clk 0:01:55.7]} 16... Qe7 {[%clk
0:02:25.5]} 17. Bb7 {[%clk 0:01:42.5]} 17... Rcd8 {[%clk 0:02:25.8]} 18. Bxa6
{[%clk 0:01:42.6]} 18... e5 {[%clk 0:02:26.4]} 19. Qe2 {[%clk 0:01:28.2]} 19...
exd4 {[%clk 0:02:03.1]} 20. Rae1 {[%clk 0:01:12.9]} 20... Nc5 {[%clk 0:01:45.5]}
21. Bb5 {[%clk 0:01:01.8]} 21... dxe3 {[%clk 0:01:28.9]} 22. Nd2 {[%clk
0:00:38.8]} 22... Nxg3 {[%clk 0:00:58.6]} 23. hxg3 {[%clk 0:00:39.7]} 23...
exf2+ {[%clk 0:00:58.6]} 24. Qxf2 {[%clk 0:00:40.4]} 24... Qf6 {[%clk
0:00:50.8]} 25. Qe2 {[%clk 0:00:24.2]} 25... Qxb2 {[%clk 0:00:43.7]} 26. Nb3
{[%clk 0:00:24.4]} 26... Qxe2 {[%clk 0:00:38.2]} 27. Rxe2 {[%clk 0:00:25.3]}
27... Ne4 {[%clk 0:00:38.9]} 28. Re3 {[%clk 0:00:20.2]} 28... Be5 {[%clk
0:00:25.7]} 29. Bc6 {[%clk 0:00:13.1]} 29... Nxg3 {[%clk 0:00:23]} 30. Rxe5
{[%clk 0:00:13]} 30... dxe5 {[%clk 0:00:20.2]} 31. Rf3 {[%clk 0:00:10]} 31...
Rd1+ {[%clk 0:00:19.3]} 32. Kf2 {[%clk 0:00:10.1]} 32... Ne4+ {[%clk 0:00:19.6]}
33. Ke2 {[%clk 0:00:09]} 33... Rg1 {[%clk 0:00:17.1]} 34. Ke3 {[%clk 0:00:05.2]}
34... Rd8 {[%clk 0:00:14.8]} 35. Bd5+ {[%clk 0:00:05]} 35... Kg7 {[%clk
0:00:13.2]} 36. Rxf5 {[%clk 0:00:05.3]} 36... Nd6 {[%clk 0:00:12.7]} 37. Rf2
{[%clk 0:00:03.5]} 37... Re1+ {[%clk 0:00:12.7]} 38. Kd2 {[%clk 0:00:03]} 38...
Rb1 {[%clk 0:00:11.6]} 39. Kc2 {[%clk 0:00:03.1]} 39... Rg1 {[%clk 0:00:11.2]}
40. Nd2 {[%clk 0:00:02.9]} 40... Rf8 {[%clk 0:00:08.4]} 41. Re2 {[%clk
0:00:03.5]} 41... Rf5 {[%clk 0:00:06.8]} 42. Nf3 {[%clk 0:00:03.7]} 42... Ra1
{[%clk 0:00:05.7]} 43. Kb2 {[%clk 0:00:04.2]} 43... Rf1 {[%clk 0:00:05]} 44.
Nxe5 {[%clk 0:00:04.7]} 44... R1f2 {[%clk 0:00:05.1]} 45. Rxf2 {[%clk
0:00:04.5]} 45... Rxf2+ {[%clk 0:00:06]} 46. Kb3 {[%clk 0:00:04]} 46... h5
{[%clk 0:00:04.7]} 47. a4 {[%clk 0:00:03]} 47... g4 {[%clk 0:00:04.3]} 48. Nc6
{[%clk 0:00:02.2]} 48... Kf6 {[%clk 0:00:03.4]} 49. c5 {[%clk 0:00:02.3]} 49...
bxc5 {[%clk 0:00:03.7]} 50. a5 {[%clk 0:00:03]} 50... c4+ {[%clk 0:00:01.7]} 51.
Kb4 {[%clk 0:00:02.2]} 51... c3 {[%clk 0:00:01.7]} 52. Kxc3 {[%clk 0:00:02.4]}
52... Nc8 {[%clk 0:00:01.1]} 53. a6 {[%clk 0:00:02.5]} 53... h4 {[%clk
0:00:01.7]} 54. a7 {[%clk 0:00:02.5]} 54... Nxa7 {[%clk 0:00:01.8]} 55. Nxa7
{[%clk 0:00:03.1]} 55... Ke5 {[%clk 0:00:02.7]} 56. Bb7 {[%clk 0:00:01.8]} 56...
Kf4 {[%clk 0:00:02.7]} 57. Nb5 {[%clk 0:00:01.9]} 57... Kg3 {[%clk 0:00:02.9]}
58. Nxc7 {[%clk 0:00:01.6]} 58... Rxg2 {[%clk 0:00:03.1]} 59. Ne6 {[%clk
0:00:02.1]} 59... h3 {[%clk 0:00:03.4]} 60. Nd4 {[%clk 0:00:02.7]} 60... h2
{[%clk 0:00:03.6]} 61. Nf5+ {[%clk 0:00:03.2]} 61... Kf2 {[%clk 0:00:03.8]} 62.
Bxg2 {[%clk 0:00:02.5]} 62... Kxg2 {[%clk 0:00:04.7]} 63. Ne3+ {[%clk
0:00:03.2]} 63... Kf3 {[%clk 0:00:04.9]} 0-1

[Event "Early-Titled-Tuesday-Blitz-June-18-2024"]
[Site "Chess.com"]
[Date "2024.06.18"]
[Round "11"]
[White "Andrey-Ivanov2011"]
[Black "mfschulz"]
[Result "1-0"]
[WhiteElo "2108"]
[BlackElo "2188"]
[TimeControl "180+1"]
[EndTime "10:09:09 PDT"]
[Termination "Andrey-Ivanov2011 won on time"]

1. e4 {[%clk 0:03:00.9]} 1... c5 {[%clk 0:02:58.9]} 2. Nf3 {[%clk 0:03:00.1]}
2... Nc6 {[%clk 0:02:59]} 3. d4 {[%clk 0:03:00.1]} 3... cxd4 {[%clk 0:02:58.5]}
4. Nxd4 {[%clk 0:03:01]} 4... g6 {[%clk 0:02:58.6]} 5. Nc3 {[%clk 0:03:00.2]}
5... Bg7 {[%clk 0:02:58.2]} 6. Be3 {[%clk 0:03:00.7]} 6... Nf6 {[%clk
0:02:58.1]} 7. f3 {[%clk 0:02:59.4]} 7... O-O {[%clk 0:02:57.7]} 8. Qd2 {[%clk
0:02:59.3]} 8... d5 {[%clk 0:02:57.8]} 9. Nxc6 {[%clk 0:02:52.9]} 9... bxc6
{[%clk 0:02:57.3]} 10. exd5 {[%clk 0:02:52.4]} 10... Nxd5 {[%clk 0:02:55.6]} 11.
Nxd5 {[%clk 0:02:49]} 11... cxd5 {[%clk 0:02:55.8]} 12. c3 {[%clk 0:02:49.2]}
12... e5 {[%clk 0:02:54.6]} 13. Bc5 {[%clk 0:02:47.6]} 13... Re8 {[%clk
0:02:52]} 14. Bb5 {[%clk 0:02:46.8]} 14... Bd7 {[%clk 0:02:49]} 15. Bxd7 {[%clk
0:02:47]} 15... Qxd7 {[%clk 0:02:48.9]} 16. O-O {[%clk 0:02:47.6]} 16... Rac8
{[%clk 0:02:40.8]} 17. Bf2 {[%clk 0:02:42.7]} 17... d4 {[%clk 0:02:39]} 18. cxd4
{[%clk 0:02:41.4]} 18... exd4 {[%clk 0:02:39.1]} 19. Rad1 {[%clk 0:02:41.6]}
19... Red8 {[%clk 0:02:25.7]} 20. Bh4 {[%clk 0:02:37.9]} 20... Re8 {[%clk
0:02:19.3]} 21. Bf2 {[%clk 0:02:36.1]} 21... Red8 {[%clk 0:02:06.1]} 22. Bh4
{[%clk 0:02:35.6]} 22... f6 {[%clk 0:02:06]} 23. Bf2 {[%clk 0:02:33.9]} 23... f5
{[%clk 0:02:05.4]} 24. Bh4 {[%clk 0:02:33.8]} 24... Re8 {[%clk 0:02:03.6]} 25.
Bf2 {[%clk 0:02:33.7]} 25... Rcd8 {[%clk 0:02:00.3]} 26. Bh4 {[%clk 0:02:32.3]}
26... Rb8 {[%clk 0:02:00.1]} 27. Bf2 {[%clk 0:02:30.8]} 27... d3 {[%clk
0:01:44]} 28. Qxd3 {[%clk 0:02:21]} 28... Qxd3 {[%clk 0:01:43.4]} 29. Rxd3
{[%clk 0:02:21.6]} 29... Rxb2 {[%clk 0:01:43.4]} 30. Bxa7 {[%clk 0:02:21.9]}
30... Rxa2 {[%clk 0:01:40.1]} 31. Bf2 {[%clk 0:02:22.3]} 31... Ree2 {[%clk
0:01:39.9]} 32. Rd8+ {[%clk 0:02:22.2]} 32... Kf7 {[%clk 0:01:39]} 33. Rd7+
{[%clk 0:02:22.3]} 33... Kf8 {[%clk 0:01:37.8]} 34. Rdd1 {[%clk 0:02:11.2]}
34... Be5 {[%clk 0:01:36.1]} 35. g3 {[%clk 0:02:08.5]} 35... Kf7 {[%clk
0:01:32.7]} 36. f4 {[%clk 0:02:06.7]} 36... Bc3 {[%clk 0:01:17.7]} 37. Rc1
{[%clk 0:02:01.8]} 37... Bd4 {[%clk 0:01:04.9]} 38. Rc7+ {[%clk 0:01:37.3]}
38... Ke6 {[%clk 0:01:04.8]} 39. Rxh7 {[%clk 0:01:25.5]} 39... Bxf2+ {[%clk
0:01:03.8]} 40. Kg2 {[%clk 0:01:26]} 40... Bd4+ {[%clk 0:00:59]} 41. Kh1 {[%clk
0:01:22.8]} 41... Kf6 {[%clk 0:00:46.5]} 42. Rh3 {[%clk 0:01:16.5]} 42... Ra1
{[%clk 0:00:37]} 43. Rxa1 {[%clk 0:01:14.1]} 43... Bxa1 {[%clk 0:00:37.1]} 44.
Rh8 {[%clk 0:01:14.2]} 44... Bd4 {[%clk 0:00:35.1]} 45. Rd8 {[%clk 0:01:09.4]}
45... Rd2 {[%clk 0:00:28.8]} 46. Rc8 {[%clk 0:01:03.6]} 46... Ke6 {[%clk
0:00:27.4]} 47. Rd8 {[%clk 0:01:02.4]} 47... Ke7 {[%clk 0:00:23.4]} 48. Rd5
{[%clk 0:01:01.5]} 48... Bc3 {[%clk 0:00:19.9]} 49. Rc5 {[%clk 0:01:01]} 49...
Bd4 {[%clk 0:00:16.7]} 50. Rd5 {[%clk 0:01:01]} 50... Be3 {[%clk 0:00:16.2]} 51.
Re5+ {[%clk 0:01:01.3]} 51... Kf6 {[%clk 0:00:15.4]} 52. Rxe3 {[%clk 0:01:02.2]}
52... Rd1+ {[%clk 0:00:15.2]} 53. Kg2 {[%clk 0:01:02.1]} 53... Rd2+ {[%clk
0:00:15.6]} 54. Kh3 {[%clk 0:01:02.6]} 54... Kg7 {[%clk 0:00:15.1]} 55. Re6
{[%clk 0:01:02.3]} 55... Kh6 {[%clk 0:00:14.2]} 56. Ra6 {[%clk 0:01:02.1]} 56...
Kh5 {[%clk 0:00:14.3]} 57. Ra8 {[%clk 0:00:59.7]} 57... Kh6 {[%clk 0:00:13.7]}
58. Rh8+ {[%clk 0:00:59.7]} 58... Kg7 {[%clk 0:00:14]} 59. Rh4 {[%clk
0:00:59.7]} 59... Ra2 {[%clk 0:00:12.8]} 60. g4 {[%clk 0:00:53.2]} 60... Ra3+
{[%clk 0:00:12.3]} 61. Kg2 {[%clk 0:00:53.7]} 61... fxg4 {[%clk 0:00:11.3]} 62.
Rxg4 {[%clk 0:00:54.6]} 62... Kf6 {[%clk 0:00:10.2]} 63. Rg5 {[%clk 0:00:52.7]}
63... Rb3 {[%clk 0:00:07.8]} 64. h3 {[%clk 0:00:50.5]} 64... Ra3 {[%clk
0:00:07.6]} 65. Rg3 {[%clk 0:00:49.3]} 65... Ra2+ {[%clk 0:00:07.8]} 66. Kf3
{[%clk 0:00:49.1]} 66... Ra3+ {[%clk 0:00:07.4]} 67. Kg4 {[%clk 0:00:44.3]}
67... Ra4 {[%clk 0:00:07.6]} 68. Rb3 {[%clk 0:00:42.5]} 68... Kg7 {[%clk
0:00:06.8]} 69. Rb5 {[%clk 0:00:42]} 69... Kh6 {[%clk 0:00:06.5]} 70. Rb6 {[%clk
0:00:39.5]} 70... Ra1 {[%clk 0:00:04.8]} 71. Kh4 {[%clk 0:00:37.8]} 71... Ra4
{[%clk 0:00:04.2]} 72. Kg4 {[%clk 0:00:36.2]} 72... Ra1 {[%clk 0:00:04.2]} 73.
Rb3 {[%clk 0:00:35.1]} 73... Rg1+ {[%clk 0:00:02.6]} 74. Kf3 {[%clk 0:00:34]}
74... Kh5 {[%clk 0:00:02.8]} 75. Kf2 {[%clk 0:00:30.2]} 75... Rh1 {[%clk
0:00:01.1]} 76. Kg2 {[%clk 0:00:30.5]} 1-0